[Event "Early-Titled-Tuesday-Blitz-October-03-2023"]
[Site "Chess.com"]
[Date "2023.10.03"]
[Round "6"]
[White "PoXerStar"]
[Black "kritipatel"]
[Result "1-0"]
[WhiteElo "2424"]
[BlackElo "2132"]
[TimeControl "180+1"]
[EndTime "9:06:23 PDT"]
[Termination "PoXerStar won by resignation"]

1. Nf3 {[%clk 0:03:00.9]} 1... d5 {[%clk 0:02:58.4]} 2. b3 {[%clk 0:03:01.3]}
2... c5 {[%clk 0:02:57.5]} 3. Bb2 {[%clk 0:03:02.2]} 3... Nc6 {[%clk 0:02:57.9]}
4. e3 {[%clk 0:03:02.4]} 4... f6 {[%clk 0:02:58.1]} 5. Bb5 {[%clk 0:03:02.2]}
5... e5 {[%clk 0:02:57.6]} 6. Bxc6+ {[%clk 0:02:59.5]} 6... bxc6 {[%clk
0:02:58.5]} 7. d3 {[%clk 0:02:58.4]} 7... Bd6 {[%clk 0:02:54.3]} 8. Nbd2 {[%clk
0:02:58.9]} 8... Ne7 {[%clk 0:02:54.6]} 9. e4 {[%clk 0:02:59.6]} 9... d4 {[%clk
0:02:53.7]} 10. Nc4 {[%clk 0:02:59.3]} 10... O-O {[%clk 0:02:54.1]} 11. O-O
{[%clk 0:02:50.8]} 11... Ng6 {[%clk 0:02:52.3]} 12. Nxd6 {[%clk 0:02:48.4]}
12... Qxd6 {[%clk 0:02:52]} 13. a4 {[%clk 0:02:49.3]} 13... Bg4 {[%clk
0:02:51.6]} 14. h3 {[%clk 0:02:47.4]} 14... Be6 {[%clk 0:02:51.2]} 15. Nd2
{[%clk 0:02:40.3]} 15... f5 {[%clk 0:02:49.8]} 16. exf5 {[%clk 0:02:39.4]} 16...
Bxf5 {[%clk 0:02:47.2]} 17. Nc4 {[%clk 0:02:37.2]} 17... Qf6 {[%clk 0:02:43.6]}
18. Ba3 {[%clk 0:02:16.4]} 18... Nf4 {[%clk 0:02:34.6]} 19. Qf3 {[%clk 0:02:10]}
19... Qg5 {[%clk 0:02:09.8]} 20. Kh1 {[%clk 0:02:01.3]} 20... Rae8 {[%clk
0:01:59.4]} 21. Rae1 {[%clk 0:01:54.5]} 21... Be6 {[%clk 0:01:43]} 22. Bc1
{[%clk 0:01:50.6]} 22... Bd5 {[%clk 0:01:41.3]} 23. Bxf4 {[%clk 0:01:48.2]}
23... Rxf4 {[%clk 0:01:03.9]} 24. Qg3 {[%clk 0:01:45.1]} 24... Qh5 {[%clk
0:01:00]} 25. Nxe5 {[%clk 0:01:29.4]} 25... Rxe5 {[%clk 0:00:52.1]} 26. Qxf4
{[%clk 0:01:28.5]} 26... Qxh3+ {[%clk 0:00:51.4]} 27. Qh2 {[%clk 0:01:28.5]}
27... Bxg2+ {[%clk 0:00:36.6]} 28. Kg1 {[%clk 0:01:28.7]} 28... Rg5 {[%clk
0:00:21.4]} 29. f4 {[%clk 0:01:24.6]} 29... Rg3 {[%clk 0:00:14.2]} 30. Qxh3
{[%clk 0:01:21]} 30... Bxh3+ {[%clk 0:00:14.4]} 31. Kh2 {[%clk 0:01:18.2]} 31...
Rg2+ {[%clk 0:00:07.4]} 32. Kxh3 {[%clk 0:01:18]} 32... Rxc2 {[%clk 0:00:08.1]}
33. Re5 {[%clk 0:01:14.7]} 33... Rc3 {[%clk 0:00:08.5]} 34. Kg4 {[%clk
0:01:13.6]} 34... Rxd3 {[%clk 0:00:09]} 35. Rxc5 {[%clk 0:01:13.8]} 35... Rxb3
{[%clk 0:00:09.7]} 36. Rxc6 {[%clk 0:01:13.8]} 36... Rb4 {[%clk 0:00:10.5]} 37.
Re1 {[%clk 0:01:11.6]} 37... Rxa4 {[%clk 0:00:11.1]} 38. Re7 {[%clk 0:01:11.8]}
38... h6 {[%clk 0:00:11.3]} 39. Rcc7 {[%clk 0:01:11.5]} 39... d3 {[%clk
0:00:10.4]} 40. Rxg7+ {[%clk 0:01:11.2]} 40... Kf8 {[%clk 0:00:10.4]} 41. Rh7
{[%clk 0:01:07.4]} 41... Kg8 {[%clk 0:00:09.5]} 42. Rhd7 {[%clk 0:01:07.5]} 1-0

[Event "Early-Titled-Tuesday-Blitz-October-03-2023"]
[Site "Chess.com"]
[Date "2023.10.03"]
[Round "6"]
[White "OchsenfroschGambit"]
[Black "TatjanaVasilevich"]
[Result "1-0"]
[WhiteElo "2476"]
[BlackElo "2573"]
[TimeControl "180+1"]
[EndTime "9:06:26 PDT"]
[Termination "OchsenfroschGambit won on time"]

1. d4 {[%clk 0:02:59.6]} 1... Nf6 {[%clk 0:02:55.3]} 2. c4 {[%clk 0:02:59.4]}
2... e6 {[%clk 0:02:55.9]} 3. Nc3 {[%clk 0:02:56.7]} 3... Bb4 {[%clk 0:02:56.1]}
4. f3 {[%clk 0:02:57]} 4... d5 {[%clk 0:02:56]} 5. a3 {[%clk 0:02:57.3]} 5...
Bxc3+ {[%clk 0:02:55.8]} 6. bxc3 {[%clk 0:02:58.2]} 6... O-O {[%clk 0:02:55.9]}
7. cxd5 {[%clk 0:02:56.7]} 7... exd5 {[%clk 0:02:56.1]} 8. e3 {[%clk 0:02:56.9]}
8... Bf5 {[%clk 0:02:56.8]} 9. g4 {[%clk 0:02:51]} 9... Bg6 {[%clk 0:02:56.6]}
10. h4 {[%clk 0:02:37.4]} 10... h6 {[%clk 0:02:56.1]} 11. Ne2 {[%clk 0:02:33.6]}
11... Re8 {[%clk 0:02:55]} 12. Nf4 {[%clk 0:02:33.2]} 12... Bh7 {[%clk
0:02:53.5]} 13. Kf2 {[%clk 0:02:31.8]} 13... c6 {[%clk 0:02:42.9]} 14. Bd3
{[%clk 0:02:22.6]} 14... Bxd3 {[%clk 0:02:42.5]} 15. Qxd3 {[%clk 0:02:23.5]}
15... Nh7 {[%clk 0:02:43.2]} 16. a4 {[%clk 0:02:15.7]} 16... Nd7 {[%clk
0:02:42.7]} 17. Ba3 {[%clk 0:02:15]} 17... a6 {[%clk 0:02:42.5]} 18. Rag1 {[%clk
0:02:14]} 18... Ndf8 {[%clk 0:02:31.3]} 19. Bxf8 {[%clk 0:01:52]} 19... Nxf8
{[%clk 0:02:11.5]} 20. g5 {[%clk 0:01:51.2]} 20... Qd6 {[%clk 0:02:11.4]} 21.
Nh5 {[%clk 0:00:54]} 21... Qg6 {[%clk 0:01:12.7]} 22. Nf6+ {[%clk 0:00:34.2]}
22... gxf6 {[%clk 0:00:43.6]} 23. gxf6 {[%clk 0:00:33.3]} 23... Kh7 {[%clk
0:00:43.4]} 24. Rxg6 {[%clk 0:00:31.6]} 24... fxg6 {[%clk 0:00:44]} 25. h5
{[%clk 0:00:28.1]} 25... Re7 {[%clk 0:00:41.4]} 26. fxe7 {[%clk 0:00:27]} 26...
Kg7 {[%clk 0:00:07.9]} 27. exf8=Q+ {[%clk 0:00:25]} 1-0

[Event "Early-Titled-Tuesday-Blitz-October-03-2023"]
[Site "Chess.com"]
[Date "2023.10.03"]
[Round "6"]
[White "Elbebiber"]
[Black "jasonbolivar"]
[Result "1-0"]
[WhiteElo "2145"]
[BlackElo "2222"]
[TimeControl "180+1"]
[EndTime "9:06:26 PDT"]
[Termination "Elbebiber won on time"]

1. f4 {[%clk 0:03:00.9]} 1... d5 {[%clk 0:02:46.9]} 2. Nf3 {[%clk 0:03:00.5]}
2... c5 {[%clk 0:02:29.8]} 3. e3 {[%clk 0:03:00.4]} 3... a6 {[%clk 0:02:23.1]}
4. b3 {[%clk 0:02:53.6]} 4... Nf6 {[%clk 0:02:21.9]} 5. Bb2 {[%clk 0:02:52.9]}
5... Ne4 {[%clk 0:02:21.1]} 6. g3 {[%clk 0:02:46.4]} 6... Nc6 {[%clk 0:02:19.9]}
7. Bg2 {[%clk 0:02:40.2]} 7... f6 {[%clk 0:02:20]} 8. O-O {[%clk 0:02:38.4]}
8... e6 {[%clk 0:02:19.5]} 9. d3 {[%clk 0:02:33]} 9... Nd6 {[%clk 0:02:19.1]}
10. Qe2 {[%clk 0:02:33]} 10... Be7 {[%clk 0:02:18.5]} 11. Nbd2 {[%clk 0:02:33]}
11... O-O {[%clk 0:02:18.2]} 12. e4 {[%clk 0:02:30.2]} 12... Bd7 {[%clk
0:02:06.9]} 13. Rfe1 {[%clk 0:02:19.8]} 13... Re8 {[%clk 0:02:05.8]} 14. c4
{[%clk 0:02:08]} 14... dxe4 {[%clk 0:01:50.6]} 15. Nxe4 {[%clk 0:02:03.7]} 15...
Nf5 {[%clk 0:01:46.2]} 16. Rad1 {[%clk 0:01:53.1]} 16... Bf8 {[%clk 0:01:39.6]}
17. Kh1 {[%clk 0:01:40.3]} 17... Qc7 {[%clk 0:01:30.6]} 18. d4 {[%clk
0:01:36.7]} 18... cxd4 {[%clk 0:01:29.9]} 19. Nxd4 {[%clk 0:01:36.8]} 19... Bb4
{[%clk 0:01:25.7]} 20. Rf1 {[%clk 0:01:30.1]} 20... Ncxd4 {[%clk 0:01:25.3]} 21.
Bxd4 {[%clk 0:01:29.5]} 21... Nxd4 {[%clk 0:01:08.6]} 22. Rxd4 {[%clk
0:01:29.1]} 22... Bc6 {[%clk 0:01:07]} 23. Rd3 {[%clk 0:01:22.1]} 23... b6
{[%clk 0:00:45]} 24. Rfd1 {[%clk 0:01:20]} 24... Bf8 {[%clk 0:00:17.5]} 25. Bf3
{[%clk 0:01:18.9]} 25... Qb7 {[%clk 0:00:16.5]} 26. Kg2 {[%clk 0:01:17.1]} 26...
Rac8 {[%clk 0:00:12.7]} 27. Nd6 {[%clk 0:01:12.3]} 27... Bxf3+ {[%clk
0:00:10.7]} 28. Qxf3 {[%clk 0:01:11.5]} 28... Qxf3+ {[%clk 0:00:10]} 29. Kxf3
{[%clk 0:01:12.4]} 29... Bxd6 {[%clk 0:00:09.8]} 30. Rxd6 {[%clk 0:01:12.6]}
30... b5 {[%clk 0:00:09.6]} 31. Rc1 {[%clk 0:01:00.4]} 31... bxc4 {[%clk
0:00:07.3]} 32. bxc4 {[%clk 0:01:00.9]} 32... a5 {[%clk 0:00:06]} 33. c5 {[%clk
0:00:59]} 33... e5 {[%clk 0:00:05.5]} 34. c6 {[%clk 0:00:55.5]} 34... exf4
{[%clk 0:00:04.8]} 35. Kxf4 {[%clk 0:00:53.8]} 35... Kf7 {[%clk 0:00:04.5]} 36.
Rd7+ {[%clk 0:00:52.6]} 36... Kg6 {[%clk 0:00:04.4]} 37. c7 {[%clk 0:00:47.4]}
37... h5 {[%clk 0:00:01.5]} 38. h4 {[%clk 0:00:47.4]} 1-0

[Event "Early-Titled-Tuesday-Blitz-October-03-2023"]
[Site "Chess.com"]
[Date "2023.10.03"]
[Round "6"]
[White "HajiyevKanan"]
[Black "bascheyaro"]
[Result "0-1"]
[WhiteElo "2539"]
[BlackElo "2809"]
[TimeControl "180+1"]
[EndTime "9:06:31 PDT"]
[Termination "bascheyaro won by resignation"]

1. d4 {[%clk 0:02:51.9]} 1... d5 {[%clk 0:03:00.2]} 2. Nf3 {[%clk 0:02:51]} 2...
Nf6 {[%clk 0:03:00.5]} 3. c4 {[%clk 0:02:51.5]} 3... c6 {[%clk 0:03:00.9]} 4.
cxd5 {[%clk 0:02:52.4]} 4... cxd5 {[%clk 0:03:01.3]} 5. Nc3 {[%clk 0:02:53.3]}
5... Nc6 {[%clk 0:03:01.8]} 6. Bg5 {[%clk 0:02:54]} 6... a6 {[%clk 0:03:01.3]}
7. Bxf6 {[%clk 0:02:53.9]} 7... gxf6 {[%clk 0:03:01.1]} 8. Qb3 {[%clk
0:02:54.8]} 8... e6 {[%clk 0:03:00.9]} 9. e3 {[%clk 0:02:55]} 9... f5 {[%clk
0:03:01]} 10. Be2 {[%clk 0:02:55.7]} 10... Bd6 {[%clk 0:03:01.3]} 11. O-O {[%clk
0:02:56.2]} 11... b5 {[%clk 0:02:58]} 12. Rac1 {[%clk 0:02:55]} 12... Bd7 {[%clk
0:02:57.8]} 13. Rfd1 {[%clk 0:02:34.2]} 13... O-O {[%clk 0:02:57.2]} 14. Nb1
{[%clk 0:02:25.8]} 14... Rc8 {[%clk 0:02:54.4]} 15. a3 {[%clk 0:02:17.4]} 15...
h6 {[%clk 0:02:51.1]} 16. Nbd2 {[%clk 0:02:16.7]} 16... Kg7 {[%clk 0:02:43.1]}
17. Qa2 {[%clk 0:02:10]} 17... Na5 {[%clk 0:02:38.8]} 18. b4 {[%clk 0:02:07.3]}
18... Nc4 {[%clk 0:02:38.3]} 19. Nb3 {[%clk 0:02:07.7]} 19... Bc6 {[%clk
0:02:31.2]} 20. Nc5 {[%clk 0:02:04]} 20... Ra8 {[%clk 0:02:30.3]} 21. a4 {[%clk
0:01:52.8]} 21... a5 {[%clk 0:02:24.1]} 22. Bxc4 {[%clk 0:01:52.5]} 22... dxc4
{[%clk 0:02:06.3]} 23. axb5 {[%clk 0:01:39.5]} 23... Bd5 {[%clk 0:02:02.6]} 24.
Nb7 {[%clk 0:01:28.1]} 24... Bxb7 {[%clk 0:02:02]} 25. bxa5 {[%clk 0:01:21.1]}
25... Qxa5 {[%clk 0:02:00.4]} 26. Qxc4 {[%clk 0:01:17.1]} 26... Rfc8 {[%clk
0:01:49.9]} 27. Qe2 {[%clk 0:01:16.8]} 27... Qa2 {[%clk 0:01:42.8]} 28. Qf1
{[%clk 0:01:04.4]} 28... Bxf3 {[%clk 0:01:32.1]} 29. gxf3 {[%clk 0:01:04.2]}
29... Qd5 {[%clk 0:01:32.2]} 30. f4 {[%clk 0:00:52.1]} 30... Kh7 {[%clk
0:01:29.4]} 31. Rxc8 {[%clk 0:00:49]} 31... Rxc8 {[%clk 0:01:29.3]} 32. f3
{[%clk 0:00:41.8]} 32... Rc2 {[%clk 0:01:19.3]} 33. Qd3 {[%clk 0:00:35.5]} 33...
Qa2 {[%clk 0:01:16.3]} 34. Qf1 {[%clk 0:00:29.2]} 34... Rb2 {[%clk 0:01:13.9]}
35. Qh3 {[%clk 0:00:22]} 35... Qb3 {[%clk 0:01:08.1]} 36. Re1 {[%clk 0:00:15.3]}
36... Qc3 {[%clk 0:01:08.2]} 37. Kf1 {[%clk 0:00:09.6]} 37... Bb4 {[%clk
0:01:02.4]} 38. Re2 {[%clk 0:00:06.2]} 38... Qd3 {[%clk 0:00:46.8]} 39. Qg2
{[%clk 0:00:05.6]} 39... Qd1+ {[%clk 0:00:45.8]} 0-1

[Event "Early-Titled-Tuesday-Blitz-October-03-2023"]
[Site "Chess.com"]
[Date "2023.10.03"]
[Round "6"]
[White "Polish_fighter3000"]
[Black "Rap_woyska"]
[Result "1-0"]
[WhiteElo "3065"]
[BlackElo "2502"]
[TimeControl "180+1"]
[EndTime "9:06:33 PDT"]
[Termination "Polish_fighter3000 won by resignation"]

1. g4 {[%clk 0:03:00.9]} 1... d5 {[%clk 0:02:59.8]} 2. Bg2 {[%clk 0:03:00]} 2...
c6 {[%clk 0:03:00.4]} 3. h3 {[%clk 0:02:58.5]} 3... e5 {[%clk 0:02:59.3]} 4. d3
{[%clk 0:02:58.7]} 4... Bc5 {[%clk 0:02:48.2]} 5. a3 {[%clk 0:02:54.8]} 5... a5
{[%clk 0:02:48.2]} 6. e3 {[%clk 0:02:50.5]} 6... Ne7 {[%clk 0:02:43.1]} 7. Nf3
{[%clk 0:02:49.7]} 7... Ng6 {[%clk 0:02:39.7]} 8. Nbd2 {[%clk 0:02:46.7]} 8...
O-O {[%clk 0:02:30.5]} 9. b3 {[%clk 0:02:46.2]} 9... f5 {[%clk 0:02:17.4]} 10.
gxf5 {[%clk 0:02:30.2]} 10... Bxf5 {[%clk 0:02:18.3]} 11. Bb2 {[%clk 0:02:30.5]}
11... Nd7 {[%clk 0:02:15.7]} 12. Qe2 {[%clk 0:02:30.2]} 12... Qe7 {[%clk
0:01:55.5]} 13. h4 {[%clk 0:02:26.4]} 13... e4 {[%clk 0:01:48.8]} 14. dxe4
{[%clk 0:02:24.4]} 14... Bxe4 {[%clk 0:01:44]} 15. h5 {[%clk 0:02:20.5]} 15...
Nge5 {[%clk 0:01:44.4]} 16. Nxe4 {[%clk 0:02:18.5]} 16... dxe4 {[%clk
0:01:29.6]} 17. Nxe5 {[%clk 0:02:18.4]} 17... Nxe5 {[%clk 0:01:30.5]} 18. Bxe4
{[%clk 0:02:19]} 18... h6 {[%clk 0:00:57.9]} 19. Rg1 {[%clk 0:02:12.3]} 19...
Rf7 {[%clk 0:00:37.9]} 20. f4 {[%clk 0:02:00.7]} 20... Ng4 {[%clk 0:00:35.3]}
21. Qxg4 {[%clk 0:01:17.9]} 21... Qxe4 {[%clk 0:00:34.7]} 22. O-O-O {[%clk
0:01:18.4]} 22... Bxe3+ {[%clk 0:00:33.6]} 23. Kb1 {[%clk 0:01:18.9]} 23... Bxg1
{[%clk 0:00:33.5]} 24. Rxg1 {[%clk 0:01:19.8]} 24... Qxf4 {[%clk 0:00:32.6]} 25.
Qe6 {[%clk 0:01:03]} 25... Kf8 {[%clk 0:00:18.9]} 26. Be5 {[%clk 0:00:46.1]}
26... Qf2 {[%clk 0:00:18.9]} 27. Rxg7 {[%clk 0:00:43.9]} 27... Qe1+ {[%clk
0:00:11.6]} 28. Ka2 {[%clk 0:00:42.3]} 28... Qf2 {[%clk 0:00:08.1]} 29. Bd6+
{[%clk 0:00:33.3]} 29... Kxg7 {[%clk 0:00:07.7]} 30. Qg6+ {[%clk 0:00:34]} 30...
Kh8 {[%clk 0:00:07.3]} 31. Be5+ {[%clk 0:00:34.9]} 31... Rf6 {[%clk 0:00:05.7]}
32. Bxf6+ {[%clk 0:00:33.7]} 1-0

[Event "Early-Titled-Tuesday-Blitz-October-03-2023"]
[Site "Chess.com"]
[Date "2023.10.03"]
[Round "6"]
[White "GMJustin"]
[Black "KorolDimitriy75"]
[Result "0-1"]
[WhiteElo "2195"]
[BlackElo "2383"]
[TimeControl "180+1"]
[EndTime "9:06:33 PDT"]
[Termination "KorolDimitriy75 won on time"]

1. d4 {[%clk 0:02:40]} 1... Nf6 {[%clk 0:02:59.6]} 2. c4 {[%clk 0:02:39.2]} 2...
c5 {[%clk 0:02:59.8]} 3. d5 {[%clk 0:02:38.5]} 3... b5 {[%clk 0:03:00.1]} 4.
cxb5 {[%clk 0:02:31.8]} 4... a6 {[%clk 0:03:00.4]} 5. f3 {[%clk 0:02:26.8]} 5...
axb5 {[%clk 0:03:00.1]} 6. e4 {[%clk 0:02:26]} 6... Qa5+ {[%clk 0:03:00.1]} 7.
Bd2 {[%clk 0:02:25.6]} 7... b4 {[%clk 0:03:00.3]} 8. Na3 {[%clk 0:02:25.6]} 8...
d6 {[%clk 0:03:00.4]} 9. Nc4 {[%clk 0:02:24.9]} 9... Qd8 {[%clk 0:03:00.6]} 10.
a3 {[%clk 0:02:22.1]} 10... e6 {[%clk 0:03:00.4]} 11. dxe6 {[%clk 0:00:45.3]}
11... Bxe6 {[%clk 0:03:01.3]} 12. Bg5 {[%clk 0:00:44.7]} 12... Nc6 {[%clk
0:01:54.6]} 13. Bd3 {[%clk 0:00:43.6]} 13... Be7 {[%clk 0:01:51.8]} 14. Ne2
{[%clk 0:00:41.3]} 14... O-O {[%clk 0:01:50.4]} 15. O-O {[%clk 0:00:39.5]} 15...
d5 {[%clk 0:01:39.3]} 16. exd5 {[%clk 0:00:34.8]} 16... Nxd5 {[%clk 0:01:38.5]}
17. Bxe7 {[%clk 0:00:32.9]} 17... Qxe7 {[%clk 0:01:39.4]} 18. f4 {[%clk
0:00:28.3]} 18... Bg4 {[%clk 0:01:23.2]} 19. h3 {[%clk 0:00:22.6]} 19... Ne3
{[%clk 0:01:19]} 20. Nxe3 {[%clk 0:00:16.5]} 20... Qxe3+ {[%clk 0:01:19.9]} 21.
Rf2 {[%clk 0:00:16.3]} 21... Rad8 {[%clk 0:01:10.9]} 22. hxg4 {[%clk 0:00:14.8]}
22... Rxd3 {[%clk 0:01:10.9]} 23. Qc1 {[%clk 0:00:13.7]} 23... Rfd8 {[%clk
0:00:57.1]} 24. Qxe3 {[%clk 0:00:10.6]} 24... Rxe3 {[%clk 0:00:58]} 25. axb4
{[%clk 0:00:10]} 25... Nxb4 {[%clk 0:00:56.7]} 26. Nc3 {[%clk 0:00:08]} 26... g6
{[%clk 0:00:53.5]} 27. Kh2 {[%clk 0:00:05.1]} 27... Nd3 {[%clk 0:00:49.2]} 28.
Rd2 {[%clk 0:00:04.6]} 28... Rd4 {[%clk 0:00:47.8]} 29. g3 {[%clk 0:00:04.4]}
29... Nb4 {[%clk 0:00:42.8]} 30. Ra8+ {[%clk 0:00:03.7]} 30... Kg7 {[%clk
0:00:42.4]} 31. Rd8 {[%clk 0:00:03.2]} 31... Red3 {[%clk 0:00:40.2]} 32. Rxd3
{[%clk 0:00:02.1]} 32... Nxd3 {[%clk 0:00:38.2]} 33. Rxd4 {[%clk 0:00:02.1]}
33... cxd4 {[%clk 0:00:39]} 34. Nd1 {[%clk 0:00:02.2]} 34... Kf6 {[%clk
0:00:37.1]} 35. Kg2 {[%clk 0:00:01.9]} 35... Ke6 {[%clk 0:00:37.5]} 36. Kf3
{[%clk 0:00:01.6]} 36... Kd5 {[%clk 0:00:37.2]} 37. Ke2 {[%clk 0:00:01.7]} 37...
Nc5 {[%clk 0:00:35.7]} 0-1

[Event "Early-Titled-Tuesday-Blitz-October-03-2023"]
[Site "Chess.com"]
[Date "2023.10.03"]
[Round "6"]
[White "RamonManon0g"]
[Black "UK_23"]
[Result "1-0"]
[WhiteElo "2295"]
[BlackElo "2429"]
[TimeControl "180+1"]
[EndTime "9:06:37 PDT"]
[Termination "RamonManon0g won by checkmate"]

1. e4 {[%clk 0:03:00.9]} 1... e5 {[%clk 0:02:58.3]} 2. Nf3 {[%clk 0:03:01.2]}
2... Nc6 {[%clk 0:02:56.9]} 3. Bc4 {[%clk 0:03:01.4]} 3... Nf6 {[%clk
0:02:56.8]} 4. Ng5 {[%clk 0:03:01.2]} 4... d5 {[%clk 0:02:57]} 5. exd5 {[%clk
0:03:02.1]} 5... Na5 {[%clk 0:02:57.4]} 6. Bb5+ {[%clk 0:03:02.7]} 6... c6
{[%clk 0:02:58]} 7. dxc6 {[%clk 0:03:03.5]} 7... bxc6 {[%clk 0:02:58.6]} 8. Bd3
{[%clk 0:03:03.7]} 8... Nd5 {[%clk 0:02:44.8]} 9. Nf3 {[%clk 0:03:02.2]} 9...
Bd6 {[%clk 0:02:39.5]} 10. O-O {[%clk 0:02:58.9]} 10... Nf4 {[%clk 0:02:39.7]}
11. Nc3 {[%clk 0:02:55.9]} 11... Nxd3 {[%clk 0:02:38.9]} 12. cxd3 {[%clk
0:02:56.8]} 12... O-O {[%clk 0:02:37.9]} 13. Re1 {[%clk 0:02:54.1]} 13... Bg4
{[%clk 0:02:18.6]} 14. Ne4 {[%clk 0:02:46.1]} 14... Bc7 {[%clk 0:02:16.1]} 15.
b4 {[%clk 0:02:45.9]} 15... Nb7 {[%clk 0:02:15.3]} 16. Qc2 {[%clk 0:02:33]}
16... Bxf3 {[%clk 0:02:13.8]} 17. gxf3 {[%clk 0:02:33.9]} 17... f5 {[%clk
0:02:06.7]} 18. Ng3 {[%clk 0:02:21.6]} 18... Rf6 {[%clk 0:01:50.9]} 19. Bb2
{[%clk 0:02:19.2]} 19... f4 {[%clk 0:01:44.8]} 20. Ne4 {[%clk 0:02:13.9]} 20...
Rh6 {[%clk 0:01:42.2]} 21. Qc4+ {[%clk 0:02:04.1]} 21... Kh8 {[%clk 0:01:41.1]}
22. Qf7 {[%clk 0:02:00.8]} 22... Qxd3 {[%clk 0:00:24.3]} 23. Ng5 {[%clk
0:01:28.3]} 23... Rg6 {[%clk 0:00:21.3]} 24. h4 {[%clk 0:00:48.2]} 24... h6
{[%clk 0:00:07.1]} 25. Bxe5 {[%clk 0:00:33.4]} 25... hxg5 {[%clk 0:00:05.2]} 26.
h5 {[%clk 0:00:31.1]} 26... Bxe5 {[%clk 0:00:03.3]} 27. hxg6 {[%clk 0:00:27.8]}
27... Qxf3 {[%clk 0:00:03.5]} 28. Rxe5 {[%clk 0:00:22.8]} 28... Qg4+ {[%clk
0:00:03.9]} 29. Kf1 {[%clk 0:00:21.7]} 29... Qh3+ {[%clk 0:00:04.3]} 30. Ke1
{[%clk 0:00:18.9]} 30... Qh1+ {[%clk 0:00:04.2]} 31. Ke2 {[%clk 0:00:19.3]}
31... Qxa1 {[%clk 0:00:04.7]} 32. Re8+ {[%clk 0:00:18.6]} 32... Rxe8+ {[%clk
0:00:02]} 33. Qxe8# {[%clk 0:00:19.5]} 1-0

[Event "Early-Titled-Tuesday-Blitz-October-03-2023"]
[Site "Chess.com"]
[Date "2023.10.03"]
[Round "6"]
[White "ljuks68"]
[Black "Witty_Alien"]
[Result "0-1"]
[WhiteElo "2421"]
[BlackElo "2263"]
[TimeControl "180+1"]
[EndTime "9:06:38 PDT"]
[Termination "Witty_Alien won by resignation"]

1. e4 {[%clk 0:02:53]} 1... c5 {[%clk 0:02:59.7]} 2. Nf3 {[%clk 0:02:52.6]} 2...
d6 {[%clk 0:03:00.1]} 3. d4 {[%clk 0:02:52.9]} 3... cxd4 {[%clk 0:03:01]} 4.
Nxd4 {[%clk 0:02:53.3]} 4... Nf6 {[%clk 0:03:01.6]} 5. Nc3 {[%clk 0:02:53.8]}
5... a6 {[%clk 0:03:02.2]} 6. Bg5 {[%clk 0:02:54.3]} 6... e6 {[%clk 0:03:01.7]}
7. f4 {[%clk 0:02:54.8]} 7... Qc7 {[%clk 0:03:01.8]} 8. Bxf6 {[%clk 0:02:52.8]}
8... gxf6 {[%clk 0:03:01.8]} 9. Qh5 {[%clk 0:02:51.9]} 9... Nc6 {[%clk
0:02:41.5]} 10. O-O-O {[%clk 0:02:47.8]} 10... Nxd4 {[%clk 0:02:35]} 11. Rxd4
{[%clk 0:02:47.1]} 11... Qc5 {[%clk 0:02:21.2]} 12. Qd1 {[%clk 0:02:44.2]} 12...
h5 {[%clk 0:02:02]} 13. Be2 {[%clk 0:02:11.9]} 13... h4 {[%clk 0:02:00.7]} 14.
Rc4 {[%clk 0:02:10.9]} 14... Qa5 {[%clk 0:01:54.7]} 15. Kb1 {[%clk 0:01:45.6]}
15... Bd7 {[%clk 0:01:49.9]} 16. Re1 {[%clk 0:00:56.1]} 16... b5 {[%clk
0:01:32.7]} 17. Rd4 {[%clk 0:00:55]} 17... b4 {[%clk 0:01:31.8]} 18. Nd5 {[%clk
0:00:53]} 18... exd5 {[%clk 0:01:32.1]} 19. exd5 {[%clk 0:00:53.3]} 19... Kd8
{[%clk 0:01:21.1]} 20. Qd2 {[%clk 0:00:40.7]} 20... Rb8 {[%clk 0:00:43.3]} 21.
a3 {[%clk 0:00:39.9]} 21... f5 {[%clk 0:00:26.9]} 22. axb4 {[%clk 0:00:38.9]}
22... Qb6 {[%clk 0:00:26.7]} 23. c3 {[%clk 0:00:29.6]} 23... a5 {[%clk
0:00:24.8]} 24. bxa5 {[%clk 0:00:18.6]} 24... Qxa5 {[%clk 0:00:22.9]} 25. Rb4
{[%clk 0:00:18.9]} 25... Rxb4 {[%clk 0:00:20.5]} 26. cxb4 {[%clk 0:00:19.2]}
26... Qb6 {[%clk 0:00:17.1]} 27. Bd3 {[%clk 0:00:16.1]} 27... Bg7 {[%clk
0:00:16.3]} 28. Qc2 {[%clk 0:00:14.3]} 28... Qxb4 {[%clk 0:00:13.6]} 29. Rc1
{[%clk 0:00:14.1]} 29... Ke7 {[%clk 0:00:09.4]} 30. Re1+ {[%clk 0:00:13.4]}
30... Qxe1+ {[%clk 0:00:09.3]} 31. Ka2 {[%clk 0:00:12.9]} 31... Ra8+ {[%clk
0:00:08.6]} 0-1

[Event "Early-Titled-Tuesday-Blitz-October-03-2023"]
[Site "Chess.com"]
[Date "2023.10.03"]
[Round "6"]
[White "Duhless"]
[Black "MatyChess1"]
[Result "1-0"]
[WhiteElo "2972"]
[BlackElo "2739"]
[TimeControl "180+1"]
[EndTime "9:06:43 PDT"]
[Termination "Duhless won on time"]

1. d4 {[%clk 0:03:00.9]} 1... d5 {[%clk 0:02:59]} 2. c4 {[%clk 0:02:53.5]} 2...
c6 {[%clk 0:02:59.4]} 3. Nf3 {[%clk 0:02:53.2]} 3... Nf6 {[%clk 0:02:59.9]} 4.
Nc3 {[%clk 0:02:39.1]} 4... e6 {[%clk 0:02:52.1]} 5. g3 {[%clk 0:02:37]} 5...
dxc4 {[%clk 0:02:47.2]} 6. Bg2 {[%clk 0:02:36.3]} 6... b5 {[%clk 0:02:46.3]} 7.
Ne5 {[%clk 0:02:35.9]} 7... Qb6 {[%clk 0:02:37.8]} 8. O-O {[%clk 0:02:30.8]}
8... Bb7 {[%clk 0:02:37.7]} 9. b3 {[%clk 0:02:21]} 9... cxb3 {[%clk 0:02:34.1]}
10. Qxb3 {[%clk 0:02:18.3]} 10... Nbd7 {[%clk 0:02:14.2]} 11. Be3 {[%clk
0:02:11.4]} 11... Nd5 {[%clk 0:02:02.3]} 12. Nxd7 {[%clk 0:02:06.6]} 12... Kxd7
{[%clk 0:02:02]} 13. Ne4 {[%clk 0:02:06.6]} 13... Be7 {[%clk 0:01:56.4]} 14.
Nc5+ {[%clk 0:01:58.5]} 14... Ke8 {[%clk 0:01:31.6]} 15. Rfc1 {[%clk 0:01:52.1]}
15... Rc8 {[%clk 0:01:24.4]} 16. a4 {[%clk 0:01:48.3]} 16... b4 {[%clk
0:01:10.4]} 17. a5 {[%clk 0:01:43.9]} 17... Qb5 {[%clk 0:01:04.5]} 18. Bd2
{[%clk 0:01:27.7]} 18... Ba8 {[%clk 0:00:57.1]} 19. e4 {[%clk 0:01:22.5]} 19...
Nc3 {[%clk 0:00:49.2]} 20. Bxc3 {[%clk 0:01:16.1]} 20... bxc3 {[%clk 0:00:50.1]}
21. Qxc3 {[%clk 0:01:15.4]} 21... Qb8 {[%clk 0:00:32.3]} 22. Rab1 {[%clk
0:01:05]} 22... Qc7 {[%clk 0:00:30.7]} 23. e5 {[%clk 0:01:05.1]} 23... h5 {[%clk
0:00:26.7]} 24. h4 {[%clk 0:00:56.7]} 24... g5 {[%clk 0:00:26.1]} 25. hxg5
{[%clk 0:00:55.6]} 25... Bxg5 {[%clk 0:00:27]} 26. f4 {[%clk 0:00:54.4]} 26...
Be7 {[%clk 0:00:27.5]} 27. Kh2 {[%clk 0:00:48.1]} 27... Rg8 {[%clk 0:00:23.8]}
28. Bf3 {[%clk 0:00:47.1]} 28... Rh8 {[%clk 0:00:12.2]} 29. Rb2 {[%clk
0:00:44.3]} 29... Rd8 {[%clk 0:00:12.3]} 30. Rcb1 {[%clk 0:00:42.4]} 30... Kf8
{[%clk 0:00:10.9]} 31. Be4 {[%clk 0:00:33]} 31... Rg8 {[%clk 0:00:09.8]} 32. Kh3
{[%clk 0:00:29.8]} 32... Kg7 {[%clk 0:00:07.8]} 33. Rb7 {[%clk 0:00:29.1]} 33...
Bxb7 {[%clk 0:00:07.2]} 34. Rxb7 {[%clk 0:00:30]} 34... Qxb7 {[%clk 0:00:01.4]}
35. Nxb7 {[%clk 0:00:29.8]} 35... Rd7 {[%clk 0:00:01.1]} 36. a6 {[%clk
0:00:28.1]} 1-0